bitfinex-derivatives/quotes_BNBF0:USTF0_20250709
["timestamp","ask_amount","ask_price","bid_price","bid_amount"]
[1752100555742,3.35616882,670.22,669.31,1.52124726]
[1752100555941,3.35616882,670.22,669.32,1.52124726]
[1752100556145,3.35616882,670.22,669.33,1.52124726]
[1752100556345,3.35616882,670.23,669.34,1.52124726]
[1752100556646,3.35616882,670.23,669.19,2.027]
[1752100556647,3.35616882,670.23,669.35,1.52124726]
[1752100556846,3.35616882,670.23,669.36,1.52124726]
[1752100557041,3.35616882,670.23,669.37,1.52124726]
[1752100557339,3.35616882,670.23,669.38,1.52124726]
[1752100557547,11.1872294,671.76,669.39,1.52124726]
[1752100557548,3.35616882,670.2,669.39,1.52124726]
[1752100557742,3.35616882,670.2,669.4,1.52124726]
[1752100557946,3.35616882,670.2,669.41,1.52124726]
[1752100558147,3.35616882,670.2,669.42,1.52124726]
[1752100558347,3.35616882,670.18,669.43,1.51965691]
[1752100558550,3.35616882,670.18,669.19,2.027]
[1752100558745,3.35616882,670.18,669.2,1.51947897]
[1752100558951,3.35616882,670.18,669.21,1.51947897]
[1752100559250,3.35616882,670.18,669.22,1.51947897]
[1752100559550,3.35616882,670.19,669.23,1.51947897]
[1752100559744,3.35616882,670.19,669.24,1.51947897]
[1752100560046,3.35616882,670.19,669.25,1.51947897]
[1752100560249,3.35616882,670.19,669.26,1.51947897]
[1752100560450,3.35616882,670.22,669.27,1.51947897]
[1752100560750,3.35616882,670.23,669.28,1.51947897]
[1752100560950,3.35616882,670.23,669.29,1.51947897]
[1752100561150,3.35616882,670.23,669.3,1.51947897]
[1752100561347,3.35616882,670.23,669.31,1.51947897]
[1752100561646,3.35616882,670.23,669.32,1.51947897]
[1752100561851,3.35616882,670.24,669.33,1.51947897]
[1752100562045,3.35616882,670.24,669.34,1.51947897]
[1752100562247,3.35616882,670.25,669.35,1.51947897]
[1752100562446,3.35616882,670.25,669.36,1.51947897]
[1752100562647,3.35616882,670.28,669.37,1.51947897]
[1752100562847,3.35616882,670.28,669.38,1.51947897]
[1752100563051,17.899567,672.51,669.36,1.774]
[1752100563052,3.35616882,670.27,669.39,1.51947897]
[1752100563249,3.35616882,670.28,669.4,1.51947897]
[1752100563552,3.35616882,670.28,669.41,1.51947897]
[1752100563748,3.35616882,670.28,669.42,1.51947897]
[1752100564048,3.35616882,670.28,669.43,1.51947897]
[1752100564251,3.35616882,670.29,669.44,1.51947897]
[1752100564452,3.35616882,670.29,669.45,1.51947897]
[1752100564652,3.35616882,670.29,669.46,1.51947897]
[1752100564848,3.35616882,670.29,669.36,1.774]
[1752100565052,3.35616882,670.29,669.37,1.51787245]
[1752100565349,3.35616882,670.29,669.38,1.51787245]
[1752100565553,3.35616882,670.29,669.39,1.51787245]
[1752100565750,3.35616882,670.3,669.4,1.51787245]
[1752100565949,3.35616882,670.3,669.36,1.774]
[1752100565950,3.35616882,670.3,669.41,1.51787245]
[1752100566254,3.35616882,670.3,669.42,1.51787245]
[1752100566450,3.35616882,670.3,669.43,1.51787245]
[1752100566648,3.35616882,670.35,669.44,1.51787245]
[1752100566848,3.35616882,670.35,669.45,1.51787245]
[1752100567049,3.35616882,670.35,669.46,1.51787245]
[1752100567254,3.35616882,670.36,669.47,1.51787245]
[1752100567455,3.35616882,670.36,669.48,1.51787245]
[1752100567652,3.35616882,670.36,669.49,1.51787245]
[1752100567856,3.35616882,670.36,669.5,1.51787245]
[1752100568054,3.35616882,670.36,669.51,1.51787245]
[1752100568254,3.35616882,670.37,669.36,1.774]
[1752100568453,3.35616882,670.37,669.37,1.51661055]
[1752100568657,3.35616882,670.37,669.38,1.51661055]
[1752100568953,3.35616882,670.37,669.39,1.51661055]
[1752100569157,3.35616882,670.37,669.4,1.51661055]
[1752100569353,3.35616882,670.38,669.41,1.51661055]
[1752100569654,3.35616882,670.38,669.42,1.51661055]
[1752100569854,3.35616882,670.38,669.43,1.51661055]
[1752100570058,3.35616882,670.38,669.44,1.51661055]
[1752100570260,3.35616882,670.38,669.36,1.774]
[1752100570261,3.35616882,670.36,669.45,1.51661055]
[1752100570556,3.35616882,670.36,669.46,1.51661055]
[1752100570761,3.35616882,670.36,669.47,1.51661055]
[1752100570961,3.35616882,670.36,669.48,1.51661055]
[1752100571155,3.35616882,670.36,669.49,1.51661055]
[1752100571358,3.35616882,670.36,669.5,1.51661055]
[1752100571558,3.35616882,670.36,669.51,1.51661055]
[1752100571758,3.35616882,670.35,669.36,1.774]
[1752100572058,3.35616882,670.34,669.37,1.51600811]
[1752100572258,11.1872294,671.69,669.38,1.51600811]
[1752100572259,3.35616882,670.35,669.38,1.51600811]
[1752100572464,3.35616882,670.35,669.39,1.51600811]
[1752100572660,3.35616882,670.35,669.4,1.51600811]
[1752100572961,3.35616882,670.35,669.41,1.51600811]
[1752100573160,3.35616882,670.35,669.42,1.51600811]
[1752100573370,3.35616882,670.33,669.43,1.51600811]
[1752100573565,3.35616882,670.33,669.44,1.51600811]
[1752100573865,3.35616882,670.33,669.45,1.51600811]
[1752100574062,3.35616882,670.32,669.46,1.51600811]
[1752100574265,3.35616882,670.32,669.47,1.51600811]
[1752100574565,3.35616882,670.32,669.48,1.51600811]
[1752100574866,3.35616882,670.32,669.49,1.51600811]
[1752100575066,3.35616882,670.32,669.5,1.51600811]
[1752100575366,3.35616882,670.31,669.36,1.774]
[1752100575565,3.35616882,670.31,669.37,1.51565974]
[1752100575862,3.35616882,670.31,669.38,1.51565974]
[1752100576062,3.35616882,670.31,669.39,1.51565974]
[1752100576262,3.35616882,670.31,669.4,1.51565974]
[1752100576565,3.35616882,670.31,669.41,1.51565974]
[1752100576764,3.35616882,670.31,669.42,1.51565974]
[1752100576964,3.35616882,670.31,669.43,1.51565974]
[1752100577161,3.35616882,670.31,669.44,1.51565974]
[1752100577465,3.35616882,670.32,669.45,1.51565974]
[1752100577662,3.35616882,670.32,669.46,1.51565974]
[1752100577861,3.35616882,670.32,669.47,1.51565974]
[1752100578162,3.35616882,670.32,669.48,1.51565974]
[1752100578367,3.35616882,670.32,669.49,1.51565974]
[1752100578667,3.35616882,670.32,669.5,1.51565974]
[1752100578863,3.35616882,670.32,669.36,1.774]
[1752100579062,3.35616882,670.31,669.37,1.51568381]
[1752100579363,3.35616882,670.31,669.38,1.51568381]
[1752100579563,3.35616882,670.31,669.39,1.51568381]
[1752100579767,3.35616882,670.31,669.4,1.51568381]
[1752100580064,3.35616882,670.27,669.41,1.51568381]
[1752100580261,3.35616882,670.27,669.42,1.51568381]
[1752100580462,3.35616882,670.26,669.43,1.51568381]
[1752100580661,3.35616882,670.26,669.36,1.774]
[1752100580662,3.35616882,670.26,669.44,1.51568381]
[1752100580867,3.35616882,670.26,669.45,1.51568381]
[1752100581067,3.35616882,670.26,669.46,1.51568381]
[1752100581264,3.35616882,670.26,669.47,1.51568381]
[1752100581466,3.35616882,670.26,669.48,1.51568381]
[1752100581667,3.35616882,670.26,669.49,1.51568381]
[1752100581865,3.35616882,670.26,669.36,1.774]
[1752100582066,3.35616882,670.26,669.37,1.51594051]
[1752100582266,3.35616882,670.25,669.38,1.51594051]
[1752100582469,3.35616882,670.25,669.39,1.51594051]
[1752100582666,3.35616882,670.25,669.4,1.51594051]
[1752100582865,3.35616882,670.25,669.41,1.51594051]
[1752100583070,3.35616882,670.25,669.42,1.51594051]
[1752100583267,3.35616882,670.25,669.43,1.51594051]
[1752100583470,3.35616882,670.24,669.44,1.51594051]
[1752100583773,3.35616882,670.26,669.45,1.51594051]
[1752100584074,3.35616882,670.26,669.46,1.51594051]
[1752100584368,3.35616882,670.26,669.47,1.51594051]
[1752100584571,3.35616882,670.26,669.48,1.51594051]
[1752100584769,3.35616882,670.26,669.49,1.51594051]
[1752100584973,3.35616882,670.26,669.36,1.774]
[1752100585174,3.35616882,670.26,669.37,1.51630373]
[1752100585374,3.35616882,670.25,669.38,1.51630373]
[1752100585670,3.35616882,670.25,669.39,1.51630373]
[1752100585875,3.35616882,670.25,669.4,1.51630373]
[1752100586072,3.35616882,670.25,669.41,1.51630373]
[1752100586271,3.35616882,670.24,669.42,1.51630373]
[1752100586474,3.35616882,670.24,669.43,1.51630373]
[1752100586676,3.35616882,670.24,669.44,1.51630373]
[1752100586972,3.35616882,670.23,669.45,1.51630373]
[1752100587175,3.35616882,670.22,669.46,1.51630373]
[1752100587376,3.35616882,670.22,669.47,1.51630373]
[1752100587577,3.35616882,670.21,669.48,1.51630373]
[1752100587776,3.35616882,670.21,669.49,1.51630373]
[1752100587976,3.35616882,670.21,669.36,1.774]
[1752100588273,3.35616882,670.21,669.37,1.5168357]
[1752100588472,3.35616882,670.21,669.38,1.5168357]
[1752100588772,3.35616882,670.21,669.39,1.5168357]
[1752100588972,3.35616882,670.21,669.4,1.5168357]
[1752100589276,3.35616882,670.21,669.41,1.5168357]
[1752100589475,3.35616882,670.21,669.42,1.5168357]
[1752100589675,3.35616882,670.21,669.43,1.5168357]
[1752100589873,3.35616882,670.21,669.44,1.5168357]
[1752100590075,3.35616882,670.21,669.45,1.5168357]
[1752100590276,3.35616882,670.21,669.46,1.5168357]
[1752100590473,3.35616882,670.21,669.47,1.5168357]
[1752100590672,3.35616882,670.21,669.48,1.5168357]
[1752100590872,3.35616882,670.21,669.49,1.5168357]
[1752100591076,3.35616882,670.21,669.29,1.6627788]
[1752100591271,3.35616882,670.2,669.3,1.51703669]
[1752100591475,3.35616882,670.2,669.31,1.51703669]
[1752100592377,3.35616882,670.19,669.31,1.51703669]
[1752100592976,3.35616882,670.2,669.31,1.51703669]
[1752100593176,3.35616882,670.21,669.31,1.51703669]
[1752100593476,3.35616882,670.22,669.31,1.51703669]
[1752100593774,3.35616882,670.2,669.31,1.51703669]
[1752100594774,3.35616882,670.2,669.31,3.17981549]
[1752100594976,3.35616882,670.2,669.32,1.51703669]
[1752100595174,3.35616882,670.2,669.33,1.51703669]
[1752100595473,3.35616882,670.2,669.34,1.51703669]
[1752100595672,3.35616882,670.2,669.35,1.51703669]
[1752100595875,3.35616882,670.2,669.36,1.51703669]
[1752100596077,3.35616882,670.19,669.37,1.51703669]
[1752100596272,3.35616882,670.19,669.38,1.51703669]
[1752100596476,3.35616882,670.19,669.39,1.51703669]
[1752100596675,3.35616882,670.19,669.4,1.51703669]
[1752100596874,3.35616882,670.18,669.41,1.51703669]
[1752100597073,3.35616882,670.18,669.42,1.51703669]
[1752100597272,3.35616882,670.18,669.43,1.51703669]
[1752100597476,3.35616882,670.18,669.44,1.51703669]
[1752100597676,3.35616882,670.18,669.45,1.51703669]
[1752100597874,3.35616882,670.18,669.46,1.51703669]
[1752100598077,3.35616882,670.18,669.47,1.51703669]
[1752100598273,3.35616882,670.18,669.48,1.51703669]
[1752100598574,3.35616882,670.17,669.49,1.51703669]
[1752100598774,3.35616882,670.19,669.5,1.51703669]
[1752100598979,3.35616882,670.29,669.51,1.51703669]
[1752100599274,3.35616882,670.36,669.52,1.51703669]
[1752100599480,3.35616882,670.35,669.53,1.51703669]
[1752100599676,3.35616882,670.35,669.54,1.51703669]
[1752100599881,3.35616882,670.35,669.55,1.51703669]
[1752100600080,3.35616882,670.35,669.56,1.51703669]
[1752100600376,3.35616882,670.35,669.57,1.51703669]
[1752100600580,3.35616882,670.35,669.58,1.51703669]
[1752100600776,3.35616882,670.35,669.59,1.51703669]
[1752100601080,3.35616882,670.35,669.33,1.6627788]
[1752100601281,3.35616882,670.35,669.34,1.51568931]
[1752100601480,3.35616882,670.34,669.35,1.51568931]
[1752100601676,3.35616882,670.34,669.36,1.51568931]
[1752100601878,3.35616882,670.34,669.37,1.51568931]
[1752100602080,3.35616882,670.34,669.38,1.51568931]
[1752100602278,3.35616882,670.33,669.39,1.51568931]
[1752100602483,3.35616882,670.33,669.4,1.51568931]
[1752100602682,3.35616882,670.33,669.41,1.51568931]
[1752100602981,3.35616882,670.33,669.33,1.6627788]
[1752100602982,3.35616882,670.32,669.42,1.51568931]
[1752100603178,3.35616882,670.32,669.33,1.6627788]
[1752100603179,3.35616882,670.32,669.43,1.51568931]
[1752100603482,3.35616882,670.32,669.44,1.51568931]
[1752100603681,3.35616882,670.32,669.45,1.51568931]
[1752100603879,3.35616882,670.32,669.46,1.51568931]
[1752100604079,3.35616882,670.32,669.47,1.51568931]
[1752100604279,3.35616882,670.31,669.48,1.51568931]
[1752100604479,3.35616882,670.31,669.49,1.51568931]
[1752100604682,3.35616882,670.31,669.5,1.51568931]
[1752100604883,3.35616882,670.31,669.51,1.51568931]
[1752100605081,3.35616882,670.31,669.52,1.51568931]
[1752100605284,3.35616882,670.3,669.53,1.51568931]
[1752100605484,3.35616882,670.3,669.54,1.51568931]
[1752100605678,3.35616882,670.3,669.55,1.51568931]
[1752100605885,3.35616882,670.31,669.56,1.51568931]
[1752100606182,3.35616882,670.31,669.57,1.51568931]
[1752100606384,3.35616882,670.29,669.58,1.51568931]
[1752100606580,3.35616882,670.29,669.59,1.51568931]
[1752100606785,3.35616882,670.29,669.6,1.51568931]
[1752100606982,3.35616882,670.29,669.61,1.51568931]
[1752100607182,3.35616882,670.29,669.62,1.51568931]
[1752100607386,3.35616882,670.29,669.63,1.51568931]
[1752100607584,3.35616882,670.27,669.64,1.51568931]
[1752100607781,3.35616882,670.27,669.65,1.51568931]
[1752100607986,3.35616882,670.27,669.39,1.6627788]
[1752100608286,3.35616882,670.27,669.4,1.51909284]
[1752100608483,3.35616882,670.27,669.41,1.51909284]
[1752100608783,3.35616882,670.26,669.42,1.51909284]
[1752100608987,3.35616882,670.19,669.43,3.18187164]
[1752100609183,3.35616882,670.19,669.44,1.51909284]
[1752100609385,3.35616882,670.19,669.45,1.51909284]
[1752100609689,3.35616882,670.22,669.46,1.51909284]
[1752100609990,3.35616882,670.22,669.47,1.51909284]
[1752100610289,3.35616882,670.22,669.48,1.51909284]
[1752100610487,3.35616882,670.22,669.49,1.51909284]
[1752100610788,3.35616882,670.22,669.5,1.51909284]
[1752100610986,3.35616882,670.22,669.51,1.51909284]
[1752100611286,3.35616882,670.22,669.52,1.51909284]
[1752100611586,3.35616882,670.22,669.53,1.51909284]
[1752100611785,3.35616882,670.22,669.54,1.51909284]
[1752100611988,3.35616882,670.22,669.55,1.51909284]
[1752100612188,3.35616882,670.22,669.56,1.51909284]
[1752100612386,3.35616882,670.22,669.57,1.51909284]
[1752100612589,3.35616882,670.22,669.58,1.51909284]
[1752100612786,3.35616882,670.22,669.59,1.51909284]
[1752100612990,3.35616882,670.22,669.6,1.51909284]
[1752100613190,3.35616882,670.22,669.61,1.51909284]
[1752100613492,3.35616882,670.21,669.62,1.51909284]
[1752100613690,3.35616882,670.21,669.63,1.51909284]
[1752100613889,3.35616882,670.21,669.64,1.51909284]
[1752100614093,3.35616882,670.21,669.65,1.51909284]
[1752100614293,3.35616882,670.2,669.55,1.697]
[1752100614487,3.35616882,670.2,669.56,1.51895524]
[1752100614788,3.35616882,670.2,669.57,1.51895524]
[1752100614988,3.35616882,670.2,669.58,1.51895524]
[1752100615190,3.35616882,670.19,669.59,1.51895524]
[1752100615390,3.35616882,670.18,669.6,1.51895524]
[1752100615591,3.35616882,670.18,669.61,1.51895524]
[1752100615794,3.35616882,670.17,669.62,1.51895524]
[1752100615992,3.35616882,670.17,669.63,1.51895524]
[1752100616196,3.35616882,670.17,669.64,1.51895524]
[1752100616496,3.35616882,670.16,669.65,1.51895524]
[1752100616694,3.35616882,670.16,669.55,1.697]
[1752100616895,3.35616882,670.16,669.56,1.51901619]
[1752100617093,3.35616882,670.16,669.57,1.51901619]
[1752100617293,3.35616882,670.16,669.58,1.51901619]
[1752100617496,3.35616882,670.16,669.55,1.697]
[1752100617497,3.35616882,670.16,669.59,1.51901619]
[1752100617693,3.35616882,670.16,669.6,1.51901619]
[1752100617994,3.35616882,670.16,669.61,1.51901619]
[1752100618193,3.35616882,670.16,669.62,1.51901619]
[1752100618392,3.35616882,670.16,669.63,1.51901619]
[1752100618697,3.35616882,670.16,669.64,1.51901619]
[1752100618896,3.35616882,670.16,669.65,1.51901619]
[1752100619197,3.35616882,670.16,669.55,1.697]
[1752100619497,3.35616882,670.16,669.56,1.51921245]
[1752100619697,3.35616882,670.14,669.57,1.51921245]
[1752100619897,3.35616882,670.14,669.58,1.51921245]
[1752100620192,3.35616882,670.14,669.59,1.51921245]
[1752100620492,3.35616882,670.14,669.6,1.51921245]
[1752100620697,3.35616882,670.14,669.61,1.51921245]
[1752100620996,3.35616882,670.15,669.62,1.51921245]
[1752100621292,3.35616882,670.15,669.55,1.697]
[1752100621293,3.35616882,670.15,669.63,1.51921245]
[1752100621492,3.35616882,670.15,669.64,1.51921245]
[1752100621696,3.35616882,670.15,669.65,1.51921245]
[1752100621893,3.35616882,670.16,669.55,1.697]
[1752100622096,3.35616882,670.16,669.56,1.51859299]
[1752100622294,3.35616882,670.16,669.57,1.51859299]
[1752100622594,3.35616882,670.19,669.58,1.51859299]
[1752100622794,3.35616882,670.21,669.59,1.51859299]
[1752100622994,3.35616882,670.21,669.6,1.51859299]
[1752100623194,3.35616882,670.21,669.61,1.51859299]
[1752100623392,3.35616882,670.2,669.62,1.51859299]
[1752100623595,3.35616882,670.21,669.63,1.51859299]
[1752100623794,3.35616882,670.21,669.55,1.697]
[1752100623795,3.35616882,670.21,669.64,1.51859299]
[1752100623995,3.35616882,670.21,669.65,1.51859299]
[1752100624197,3.35616882,670.21,669.66,1.51859299]
[1752100624393,3.35616882,670.21,669.55,1.697]
[1752100624599,3.35616882,670.21,669.56,1.51876061]
[1752100624796,3.35616882,670.21,669.57,1.51876061]
[1752100624994,3.35616882,670.21,669.58,1.51876061]
[1752100625195,3.35616882,670.21,669.59,1.51876061]
[1752100625395,3.35616882,670.21,669.6,1.51876061]
[1752100625598,3.35616882,670.21,669.61,1.51876061]
[1752100625798,3.35616882,670.21,669.62,1.51876061]
[1752100626094,3.35616882,670.21,669.63,1.51876061]
[1752100626295,3.35616882,670.21,669.64,1.51876061]
[1752100626497,3.35616882,670.21,669.65,1.51876061]
[1752100626696,3.35616882,670.21,669.66,1.51876061]
[1752100626898,3.35616882,670.21,669.67,1.51876061]
[1752100627097,3.35616882,670.21,669.55,1.697]
[1752100627296,3.35616882,670.21,669.56,1.51886101]
[1752100627695,3.35616882,670.21,669.57,1.51885076]
[1752100627898,3.35616882,670.21,669.58,1.51885076]
[1752100628099,3.35616882,670.21,669.59,1.51885076]
[1752100628298,3.35616882,670.21,669.6,1.51885076]
[1752100628598,3.35616882,670.21,669.61,1.51885076]
[1752100628898,3.35616882,670.21,669.62,1.51885076]
[1752100629195,3.35616882,670.21,669.63,1.51885076]
[1752100629401,3.35616882,670.21,669.55,1.697]
[1752100629402,3.35616882,670.33,669.64,1.51885076]
[1752100629601,3.35616882,670.33,669.65,1.51885076]
[1752100629900,3.35616882,670.33,669.66,1.51885076]
[1752100630197,3.35616882,670.3,669.67,1.51885076]
[1752100630400,3.35616882,670.34,669.68,1.51885076]
[1752100630600,3.35616882,670.34,669.69,1.51885076]
[1752100630801,3.35616882,670.34,669.7,1.51885076]
[1752100631001,3.35616882,670.43,669.71,1.51885076]
[1752100631302,3.35616882,670.43,669.55,1.697]
[1752100631303,3.35616882,670.44,669.72,1.51885076]
[1752100631502,3.35616882,670.44,669.73,1.51885076]
[1752100631698,3.35616882,670.44,669.74,1.51885076]
[1752100632001,3.35616882,670.44,669.75,1.51885076]
[1752100632202,3.35616882,670.44,669.76,1.51885076]
[1752100632402,3.35616882,670.44,669.77,1.51885076]
[1752100632603,3.35616882,670.41,669.78,1.51885076]
[1752100632903,3.35616882,670.41,669.55,1.697]
[1752100633103,3.35616882,670.41,669.56,1.51708321]
[1752100633304,3.35616882,670.42,669.57,1.51708321]
[1752100633599,3.35616882,670.41,669.58,1.51708321]
[1752100633800,3.35616882,670.41,669.59,1.51708321]
[1752100634003,3.35616882,670.41,669.6,1.51708321]
[1752100634299,3.35616882,670.42,669.61,1.51708321]
[1752100634498,3.35616882,670.43,669.62,1.51708321]
[1752100634704,3.35616882,670.43,669.63,1.51708321]
[1752100634903,3.35616882,670.43,669.64,1.51708321]
[1752100635100,3.35616882,670.44,669.65,1.51708321]
[1752100635299,3.35616882,670.44,669.66,1.51708321]
[1752100635504,3.35616882,670.44,669.67,1.51708321]
[1752100635704,3.35616882,670.44,669.68,1.51708321]
[1752100635899,3.35616882,670.44,669.69,1.51708321]
[1752100636102,3.35616882,670.44,669.7,1.51708321]
[1752100636300,3.35616882,670.44,669.71,1.51708321]
[1752100636505,3.35616882,670.44,669.72,1.51708321]
[1752100636702,3.35616882,670.44,669.73,1.51708321]
[1752100636905,3.35616882,670.45,669.74,1.51708321]
[1752100637102,3.35616882,670.45,669.75,1.51708321]
[1752100637306,3.35616882,670.45,669.55,1.697]
[1752100637504,3.35616882,670.45,669.56,1.51590673]
[1752100637705,3.35616882,670.45,669.55,1.697]
[1752100637706,3.35616882,670.45,669.57,1.51590673]
[1752100637904,3.35616882,670.45,669.58,1.51590673]
[1752100638104,3.35616882,670.46,669.59,1.51590673]
[1752100638406,3.35616882,670.46,669.6,1.51590673]
[1752100638607,3.35616882,670.46,669.61,1.51590673]
[1752100638904,3.35616882,670.46,669.62,1.51590673]
[1752100639105,3.35616882,670.46,669.63,1.51590673]
[1752100639305,3.35616882,670.46,669.64,1.51590673]
[1752100639502,3.35616882,670.46,669.65,1.51590673]
[1752100639703,3.35616882,670.46,669.66,1.51590673]
[1752100639908,3.35616882,670.4,669.67,1.51590673]
[1752100640104,3.35616882,670.4,669.68,1.51590673]
[1752100640305,3.35616882,670.4,669.55,1.697]
[1752100640306,3.35616882,670.39,669.69,1.51590673]
[1752100640608,3.35616882,670.39,669.7,1.51590673]
[1752100640808,3.35616882,670.39,669.71,1.51590673]
[1752100641012,3.35616882,670.39,669.72,1.51590673]
[1752100641210,3.35616882,670.4,669.73,1.51590673]
[1752100641405,3.35616882,670.4,669.74,1.51590673]
[1752100641609,3.35616882,670.4,669.55,1.697]
[1752100641807,3.35616882,670.4,669.56,1.51540219]
[1752100642009,3.35616882,670.4,669.57,1.51540219]
[1752100642312,3.35616882,670.4,669.58,1.51540219]
[1752100642606,3.35616882,670.4,669.59,1.51540219]
[1752100642810,3.35616882,670.4,669.6,1.51540219]
[1752100643106,3.35616882,670.4,669.61,1.51540219]
[1752100643311,3.35616882,670.4,669.62,1.51540219]
[1752100643508,3.35616882,670.4,669.55,1.697]
[1752100643509,3.35616882,670.4,669.63,1.51540219]
[1752100643708,3.35616882,670.4,669.64,1.51540219]
[1752100644009,3.35616882,670.45,669.65,1.51540219]
[1752100644208,3.35616882,670.45,669.66,1.51540219]
[1752100644409,3.35616882,670.44,669.67,1.51540219]
[1752100644613,3.35616882,670.44,669.68,1.51540219]
[1752100644815,3.35616882,670.44,669.69,1.51540219]
[1752100645013,3.35616882,670.44,669.7,1.51540219]
[1752100645214,3.35616882,670.45,669.71,1.51540219]
[1752100645412,3.35616882,670.45,669.72,1.51540219]
[1752100645615,3.35616882,670.45,669.73,1.51540219]
[1752100645817,3.35616882,670.44,669.74,1.51540219]
[1752100646118,3.35616882,670.45,669.55,1.697]
[1752100646414,3.35616882,670.4,669.56,1.51539975]
[1752100646617,3.35616882,670.39,669.57,1.51539975]
[1752100646817,3.35616882,670.38,669.58,1.51539975]
[1752100647017,3.35616882,670.38,669.59,1.51539975]
[1752100647317,3.35616882,670.38,669.6,1.51539975]
[1752100647524,3.35616882,670.38,669.61,1.51539975]
[1752100647714,3.35616882,670.38,669.62,1.51539975]
[1752100648017,3.35616882,670.38,669.63,1.51539975]
[1752100648215,3.35616882,670.38,669.64,1.51539975]
[1752100648414,3.35616882,670.38,669.65,1.51539975]
[1752100648618,3.35616882,670.38,669.66,1.51539975]
[1752100648814,3.35616882,670.38,669.67,1.51539975]
[1752100649019,3.35616882,670.38,669.68,1.51539975]
[1752100649219,3.35616882,670.37,669.69,1.51572544]
[1752100649419,3.35616882,670.37,669.43,1.66557413]
[1752100649719,3.35616882,670.37,669.44,1.51572544]
[1752100649918,3.35616882,670.37,669.45,1.51572544]
[1752100650119,3.35616882,670.37,669.46,1.51572544]
[1752100650421,3.35616882,670.37,669.47,1.51572544]
[1752100650619,3.35616882,670.37,669.48,1.51572544]
[1752100650819,3.35616882,670.37,669.49,1.51572544]
[1752100651016,3.35616882,670.37,669.5,1.51572544]
[1752100651220,3.35616882,670.37,669.51,1.51572544]
[1752100651517,3.35616882,670.37,669.52,1.51572544]
[1752100651820,3.35616882,670.37,669.53,1.51572544]
[1752100652021,3.35616882,670.37,669.54,1.51572544]
[1752100652318,3.35616882,670.37,669.55,1.51572544]
[1752100652517,3.35616882,670.37,669.56,1.51572544]
[1752100652817,3.35616882,670.37,669.57,1.51572544]
[1752100653022,3.35616882,670.37,669.58,1.51572544]
[1752100653717,3.35616882,670.32,669.58,1.51572544]
[1752100653921,3.35616882,670.6,669.58,1.51572544]
[1752100654317,3.35616882,670.59,669.58,1.51572544]
[1752100655222,3.35616882,670.66,669.58,1.51572544]
[1752100655424,3.35616882,670.65,669.58,1.51572544]
[1752100656420,3.35616882,670.65,669.59,1.51572544]
[1752100656624,3.35616882,670.65,669.6,1.51572544]
[1752100656823,3.35616882,670.65,669.61,1.51572544]
[1752100657119,3.35616882,670.65,669.62,1.51572544]
[1752100657323,3.35616882,670.65,669.63,1.51572544]
[1752100657623,3.35616882,670.65,669.64,1.51572544]
[1752100657822,3.35616882,670.65,669.65,1.51572544]
[1752100658022,3.35616882,670.65,669.66,1.51572544]
[1752100658225,3.35616882,670.65,669.67,1.51572544]
[1752100658425,3.35616882,670.65,669.68,1.51572544]
[1752100658625,3.35616882,670.65,669.69,1.51572544]
[1752100658825,3.35616882,670.65,669.7,1.51572544]
[1752100659025,3.35616882,670.65,669.71,1.51572544]
[1752100659325,3.35616882,670.65,669.72,1.51572544]
[1752100659622,3.35616882,670.65,669.73,1.51572544]
[1752100659822,3.35616882,670.65,669.74,1.51572544]
[1752100660023,3.35616882,670.65,669.75,1.51572544]
[1752100660220,3.35616882,670.65,669.76,1.51572544]
[1752100660426,3.35616882,670.65,669.77,1.51572544]
[1752100660624,3.35616882,670.65,669.78,1.51572544]
[1752100660824,3.35616882,670.65,669.57,2.571]
[1752100661127,3.35616882,670.65,669.58,1.51736148]
[1752100661427,3.35616882,670.65,669.59,1.51736148]
[1752100661624,3.35616882,670.65,669.6,1.51736148]
[1752100661824,3.35616882,670.65,669.61,1.51736148]
[1752100662028,3.35616882,670.65,669.62,1.51736148]
[1752100662327,3.35616882,670.65,669.63,1.51736148]
[1752100662529,3.35616882,670.65,669.64,1.51736148]
[1752100662731,5.5936147,671.5,669.65,1.51736148]
[1752100662732,3.35616882,670.66,669.65,1.51736148]
[1752100662931,3.35616882,670.66,669.66,1.51736148]
[1752100663127,3.35616882,670.66,669.67,1.51736148]
[1752100663332,3.35616882,670.66,669.68,1.51736148]
[1752100663527,3.35616882,670.64,669.69,1.51736148]
[1752100663729,3.35616882,670.46,669.7,1.51736148]
[1752100663926,3.35616882,670.46,669.71,1.51736148]
[1752100664132,3.35616882,670.46,669.72,1.51736148]
[1752100664428,3.35616882,670.46,669.73,1.51736148]
[1752100664632,3.35616882,670.46,669.74,1.51736148]
[1752100664832,3.35616882,670.46,669.75,1.51736148]
[1752100665027,3.35616882,670.46,669.76,1.51736148]
[1752100665328,3.35616882,670.46,669.57,2.571]
[1752100665632,3.35616882,670.46,669.58,1.51732405]
[1752100665832,3.35616882,670.46,669.59,1.51732405]
[1752100666132,3.35616882,670.49,669.6,1.51732405]
[1752100666330,3.35616882,670.49,669.61,1.51732405]
[1752100666530,3.35616882,670.49,669.62,1.51732405]
[1752100666833,3.35616882,670.49,669.63,1.51732405]